bitfinex-derivatives/quotes_BTCF0:USTF0_20250429
["timestamp","ask_amount","ask_price","bid_price","bid_amount"]
[1745953314361,0.0524204,95350.0,95347.0,0.0524214]
[1745953314656,0.2416845,95349.0,95348.0,0.2741823]
[1745953316657,0.2416845,95349.0,95348.0,0.2751823]
[1745953316857,0.2416845,95349.0,95348.0,0.32646433]
[1745953317058,0.2416845,95349.0,95348.0,0.32546433]
[1745953317361,0.2416845,95349.0,95348.0,0.32646433]
[1745953317760,0.2416845,95349.0,95348.0,0.001]
[1745953317960,0.2721845,95349.0,95348.0,0.001]
[1745953319151,0.2096867,95347.0,95346.0,0.2096874]
[1745953319355,0.2096867,95347.0,95346.0,0.2400874]
[1745953319651,0.2096867,95347.0,95346.0,0.2719874]
[1745953321664,0.2106823,95349.0,95348.0,0.2096845]
[1745953321860,0.001,95349.0,95348.0,0.2096845]
[1745953322062,0.2096823,95349.0,95348.0,0.3296845]
[1745953322652,0.2096823,95349.0,95348.0,0.3904845]
[1745953322853,0.2096823,95349.0,95348.0,0.3914845]
[1745953323057,0.2096823,95349.0,95348.0,0.3924845]
[1745953323355,0.2096823,95349.0,95348.0,0.3934845]
[1745953323557,0.0312,95352.0,95351.0,0.2096779]
[1745953323761,0.2635791,95360.0,95359.0,0.2096603]
[1745953323965,0.2111581,95360.0,95359.0,0.5704603]
[1745953324165,0.0015,95360.0,95359.0,0.5704603]
[1745953324471,0.2111581,95360.0,95359.0,0.5704603]
[1745953324771,0.2111581,95360.0,95359.0,0.6331603]
[1745953325063,0.2111581,95360.0,95359.0,0.7531603]
[1745953325456,0.0015,95360.0,95359.0,0.7531603]
[1745953326656,0.0015,95360.0,95359.0,0.7541603]
[1745953327057,0.0015,95360.0,95359.0,0.7551603]
[1745953327367,0.2111581,95360.0,95359.0,0.7551603]
[1745953328166,0.2111581,95360.0,95359.0,0.7561603]
[1745953328669,0.2111581,95360.0,95359.0,0.7571603]
[1745953328870,0.2111581,95360.0,95359.0,0.7551603]
[1745953329676,0.2111581,95360.0,95359.0,0.7531603]
[1745953329969,0.2111581,95360.0,95359.0,0.7571603]
[1745953330170,0.2111581,95360.0,95359.0,0.7551603]
[1745953330469,0.2111581,95360.0,95359.0,0.7561603]
[1745953331160,0.2111581,95360.0,95359.0,0.7541603]
[1745953331360,0.2111581,95360.0,95359.0,0.7561603]
[1745953332066,0.2111581,95360.0,95359.0,0.122]
[1745953332373,0.2111581,95360.0,95359.0,0.3326603]
[1745953332561,0.2111581,95360.0,95359.0,0.3306603]
[1745953332871,0.2411581,95360.0,95359.0,0.3326603]
[1745953333071,0.2411581,95360.0,95359.0,0.3316603]
[1745953333263,0.2411581,95360.0,95359.0,0.2136603]
[1745953333670,0.2411581,95360.0,95359.0,0.2116603]
[1745953333972,0.2411581,95360.0,95359.0,0.2126603]
[1745953334472,0.2411581,95360.0,95359.0,0.2116603]
[1745953335766,0.2411581,95360.0,95359.0,0.002]
[1745953336369,0.3611581,95360.0,95359.0,0.002]
[1745953336667,0.3611581,95360.0,95359.0,0.001]
[1745953337361,0.3621581,95360.0,95359.0,0.001]
[1745953337569,0.2096713,95354.0,95353.0,0.21265267]
[1745953337974,0.2096735,95353.0,95352.0,0.2096754]
[1745953338167,0.3085735,95353.0,95352.0,0.2096754]
[1745953340365,0.3085735,95353.0,95352.0,0.2106754]
[1745953341373,0.3085735,95353.0,95352.0,0.2106757]
[1745953342875,0.3085735,95353.0,95352.0,0.001]
[1745953343976,0.0524196,95351.0,95349.0,0.2096809]
[1745953344167,0.0623,95350.0,95349.0,0.2096809]
[1745953344974,0.324405,95350.0,95349.0,0.2096809]
[1745953345177,0.324405,95350.0,95349.0,0.2106809]
[1745953345376,0.324405,95350.0,95349.0,0.2116809]
[1745953349281,0.324405,95350.0,95349.0,0.002]
[1745953349671,0.324405,95350.0,95349.0,0.001]
[1745953349874,0.324405,95350.0,95349.0,0.2116823]
[1745953350179,0.324405,95350.0,95349.0,0.001]
[1745953350380,0.324405,95350.0,95349.0,0.002]
[1745953351078,0.324405,95350.0,95349.0,0.2106823]
[1745953351279,0.324405,95350.0,95349.0,0.2096823]
[1745953352978,0.324405,95350.0,95349.0,0.2744823]
[1745953356584,0.324405,95350.0,95349.0,0.2096823]
[1745953357088,0.2096889,95346.0,95345.0,0.2929089]
[1745953358182,0.2720889,95346.0,95345.0,0.3254089]
[1745953359181,0.2720889,95346.0,95345.0,0.3264089]
[1745953359685,0.2720889,95346.0,95345.0,0.3274089]
[1745953359884,0.2720889,95346.0,95345.0,0.3264089]
[1745953360084,0.2720889,95346.0,95345.0,0.3274089]
[1745953360882,0.2413889,95346.0,95345.0,0.3274089]
[1745953361077,0.2413889,95346.0,95345.0,0.4474089]
[1745953361277,0.2413889,95346.0,95345.0,0.3949863]
[1745953361472,0.2413889,95346.0,95345.0,0.122]
[1745953362174,0.2413889,95346.0,95345.0,0.002]
[1745953363386,0.2413889,95346.0,95341.0,0.21265267]
[1745953363387,0.2096977,95342.0,95341.0,0.21265267]
[1745953363577,0.5704977,95342.0,95341.0,0.21265267]
[1745953364198,0.7846977,95342.0,95341.0,0.21265267]
[1745953365581,0.7856977,95342.0,95341.0,0.21265267]
[1745953366081,0.7876977,95342.0,95341.0,0.21265267]
[1745953366291,0.7906977,95342.0,95341.0,0.21265267]
[1745953366588,0.7876977,95342.0,95341.0,0.21265267]
[1745953366776,0.7906977,95342.0,95341.0,0.21265267]
[1745953367288,0.7876977,95342.0,95341.0,0.21265267]
[1745953367489,0.7906977,95342.0,95341.0,0.21265267]
[1745953368086,0.7896977,95342.0,95341.0,0.21265267]
[1745953368889,0.7866977,95342.0,95341.0,0.21265267]
[1745953369099,0.7896977,95342.0,95341.0,0.21265267]
[1745953369390,0.7866977,95342.0,95341.0,0.21265267]
[1745953369589,0.7896977,95342.0,95341.0,0.21265267]
[1745953369889,0.89458571,95342.0,95341.0,0.21265267]
[1745953371190,0.89258571,95342.0,95341.0,0.21265267]
[1745953371379,0.89558571,95342.0,95341.0,0.21265267]
[1745953372180,0.89558571,95342.0,95341.0,0.12614107]
[1745953372594,0.2097065,95338.0,95331.0,0.26542303]
[1745953372892,0.2097197,95332.0,95331.0,0.26542303]
[1745953373791,0.3039197,95332.0,95331.0,0.26542303]
[1745953374287,0.3039197,95332.0,95331.0,0.00802551]
[1745953374477,0.3039197,95332.0,95319.0,0.0323]
[1745953374478,0.0524353,95323.0,95319.0,0.0323]
[1745953374685,0.2097439,95321.0,95320.0,0.0317]
[1745953375185,0.2399439,95321.0,95320.0,0.2414461]
[1745953375492,0.2399439,95321.0,95320.0,0.2742461]
[1745953375879,0.2399439,95321.0,95320.0,0.2762461]
[1745953376293,0.2399439,95321.0,95320.0,0.2752461]
[1745953376488,0.2399439,95321.0,95320.0,0.2762461]
[1745953377295,0.2399439,95321.0,95320.0,0.2752461]
[1745953377496,0.2399439,95321.0,95320.0,0.0665]
[1745953377995,0.2399439,95321.0,95320.0,0.2762461]
[1745953378187,0.2399439,95321.0,95320.0,0.2752461]
[1745953378388,0.2399439,95321.0,95320.0,0.2762461]
[1745953378596,0.2399439,95321.0,95320.0,0.28395301]
[1745953382400,0.2399439,95321.0,95320.0,0.07420691]
[1745953382589,0.2713439,95321.0,95320.0,0.07420691]
[1745953383100,0.2713439,95321.0,95320.0,0.28395301]
[1745953383302,0.3034439,95321.0,95320.0,0.07420691]
[1745953383798,0.3034439,95321.0,95320.0,0.00970691]
[1745953384799,0.3044439,95321.0,95320.0,0.00870691]
[1745953385202,0.3054439,95321.0,95320.0,0.00770691]
[1745953385399,0.2097527,95317.0,95316.0,0.270954]
[1745953385995,0.001,95321.0,95316.0,0.270954]
[1745953385996,0.210745,95321.0,95320.0,0.2097461]
[1745953386694,0.210745,95321.0,95320.0,0.27962759]
[1745953387109,0.210745,95321.0,95320.0,0.40062759]
[1745953388002,0.209745,95321.0,95320.0,0.40062759]
[1745953388198,0.209745,95321.0,95320.0,0.12868149]
[1745953388706,0.209745,95321.0,95320.0,0.12968149]
[1745953388901,0.241645,95321.0,95320.0,0.12968149]
[1745953389098,0.272645,95321.0,95320.0,0.00868149]
[1745953389406,0.272645,95321.0,95320.0,0.00768149]
[1745953389607,0.272645,95321.0,95320.0,0.001]
[1745953389904,0.242645,95321.0,95320.0,0.2107461]
[1745953390297,0.243645,95321.0,95320.0,0.2097461]
[1745953390500,0.2097483,95319.0,95318.0,0.2936858]
[1745953390893,0.2097474,95320.0,95319.0,0.2097461]
[1745953391095,0.2097474,95320.0,95319.0,0.2410461]
[1745953391299,0.2097474,95320.0,95319.0,0.2713461]
[1745953392300,0.2097474,95320.0,95319.0,0.3913461]
[1745953392492,0.2097474,95320.0,95319.0,0.3923461]
[1745953393596,0.2097474,95320.0,95319.0,0.3943461]
[1745953394193,0.2097474,95320.0,95319.0,0.1846]
[1745953394399,0.20959148,95320.0,95319.0,0.3933483]
[1745953395502,0.20959148,95320.0,95319.0,0.3923483]
[1745953395696,0.20959148,95320.0,95319.0,0.3913483]
[1745953395894,0.20959148,95320.0,95319.0,0.3923483]
[1745953396094,0.20959148,95320.0,95319.0,0.3933483]
[1745953397303,0.20959148,95320.0,95319.0,0.2733483]
[1745953397802,0.20959148,95320.0,95319.0,0.2420483]
[1745953398101,0.20959148,95320.0,95319.0,0.2737483]
[1745953398102,0.24149148,95320.0,95319.0,0.2737483]
[1745953398294,0.20959148,95320.0,95319.0,0.2737483]
[1745953398500,0.20959148,95320.0,95319.0,0.2727483]
[1745953399607,0.20959148,95320.0,95319.0,0.2747483]
[1745953400107,0.20959148,95320.0,95319.0,0.2737483]
[1745953400309,0.27379148,95320.0,95319.0,0.2717483]
[1745953400508,0.27379148,95320.0,95319.0,0.2727483]
[1745953400804,0.27379148,95320.0,95319.0,0.063]
[1745953401107,0.27379148,95320.0,95319.0,0.2727483]
[1745953402206,0.27379148,95320.0,95319.0,0.2717483]
[1745953402509,0.27379148,95320.0,95319.0,0.2727483]
[1745953403095,0.24189148,95320.0,95319.0,0.2717483]
[1745953403711,0.0323,95320.0,95319.0,0.2717483]
[1745953403913,0.2420461,95320.0,95319.0,0.2717483]
[1745953404108,0.2420461,95320.0,95319.0,0.3917483]
[1745953404508,0.0323,95320.0,95319.0,0.3917483]
[1745953405413,0.2420461,95320.0,95319.0,0.3927483]
[1745953405810,0.2420461,95320.0,95319.0,0.3917483]
[1745953406111,0.2420461,95320.0,95319.0,0.3927483]
[1745953406312,0.2420461,95320.0,95319.0,0.3947483]
[1745953408310,0.2420461,95320.0,95319.0,0.3927483]
[1745953408514,0.2420461,95320.0,95319.0,0.3947483]
[1745953410508,0.2420461,95320.0,95319.0,0.3937483]
[1745953410712,0.2420461,95320.0,95319.0,0.3947483]
[1745953413619,0.2420461,95320.0,95319.0,0.3927483]
[1745953413919,0.2420461,95320.0,95319.0,0.3937483]
[1745953415124,0.2420461,95320.0,95319.0,0.3927483]
[1745953415315,0.2420461,95320.0,95319.0,0.3937483]
[1745953415513,0.2420461,95320.0,95319.0,0.3927483]
[1745953415913,0.2420461,95320.0,95319.0,0.3937483]
[1745953416223,0.2420461,95320.0,95319.0,0.3927483]
[1745953416423,0.2420461,95320.0,95319.0,0.3937483]
[1745953416917,0.2420461,95320.0,95319.0,0.3927483]
[1745953417122,0.2420461,95320.0,95319.0,0.3937483]
[1745953418023,0.2420461,95320.0,95319.0,0.184]
[1745953418225,0.2420461,95320.0,95319.0,0.3927483]
[1745953418427,0.2420461,95320.0,95319.0,0.3937483]
[1745953419124,0.2420461,95320.0,95319.0,0.2737483]
[1745953420424,0.0323,95320.0,95319.0,0.2737483]
[1745953420629,0.0524236,95344.0,95331.0,0.0524299]
[1745953420630,0.2421186,95334.0,95331.0,0.0524299]
[1745953420825,0.2421186,95334.0,95333.0,0.5705175]
[1745953420826,0.2407186,95334.0,95333.0,0.5705175]
[1745953421022,0.031,95334.0,95333.0,0.5705175]
[1745953421218,0.2407153,95334.0,95333.0,0.6333175]
[1745953421724,0.031,95334.0,95333.0,0.6333175]
[1745953421916,0.033,95334.0,95333.0,0.6333175]
[1745953422121,0.033,95334.0,95333.0,0.7533175]
[1745953422524,0.031,95334.0,95333.0,0.7563175]
[1745953423027,0.031,95334.0,95333.0,0.7553175]
[1745953423215,0.07984473,95342.0,95338.0,0.0524264]
[1745953423420,0.07984473,95342.0,95341.0,0.5704999]
[1745953424322,0.07984473,95342.0,95341.0,0.6904999]
[1745953424523,0.0308,95347.0,95346.0,0.2096889]
[1745953425224,0.2404867,95347.0,95346.0,0.3296889]
[1745953425427,0.2404867,95347.0,95346.0,0.3932889]
[1745953425819,0.2404867,95347.0,95346.0,0.3952889]
[1745953426322,0.2404867,95347.0,95346.0,0.3972889]
[1745953428231,0.2404867,95347.0,95346.0,0.2136889]
[1745953428430,0.2706867,95347.0,95346.0,0.2136889]
[1745953429329,0.2706867,95347.0,95346.0,0.2126889]
[1745953429632,0.2706867,95347.0,95346.0,0.2116889]
[1745953429829,0.2706867,95347.0,95346.0,0.2126889]
[1745953430921,0.2404867,95347.0,95346.0,0.2126889]
[1745953431327,0.2404867,95347.0,95346.0,0.3646889]
[1745953431729,0.2404867,95347.0,95346.0,0.3636889]
[1745953431921,0.2404867,95347.0,95346.0,0.3626889]
[1745953432117,0.2404867,95347.0,95346.0,0.3646889]
[1745953432331,0.2404867,95347.0,95346.0,0.3636889]
[1745953432525,0.2404867,95347.0,95346.0,0.3646889]
[1745953433134,0.2404867,95347.0,95346.0,0.2446889]
[1745953434135,0.2404867,95347.0,95346.0,0.2126889]
[1745953438335,0.2404867,95347.0,95346.0,0.2116889]
[1745953438536,0.2404867,95347.0,95346.0,0.2126889]
[1745953438839,0.2404867,95347.0,95346.0,0.2116889]
[1745953439041,0.2404867,95347.0,95346.0,0.2126889]
[1745953440143,0.2404867,95347.0,95346.0,0.2116889]
[1745953441341,0.2404867,95347.0,95346.0,0.2106889]
[1745953441544,0.2404867,95347.0,95346.0,0.2116889]
[1745953442046,0.2404867,95347.0,95346.0,0.2106889]
[1745953442236,0.2404867,95347.0,95346.0,0.2116889]
[1745953443847,0.2404867,95347.0,95346.0,0.2106889]
[1745953444034,0.2404867,95347.0,95346.0,0.2116889]
[1745953445236,0.2404867,95347.0,95346.0,0.3316889]
[1745953445437,0.2404867,95347.0,95346.0,0.3642889]
[1745953446048,0.2404867,95347.0,95346.0,0.3316889]
[1745953446848,0.2404867,95347.0,95346.0,0.3296889]
[1745953447148,0.2404867,95347.0,95346.0,0.2116889]
[1745953448548,0.2404867,95347.0,95346.0,0.002]
[1745953448748,0.2404867,95347.0,95346.0,0.2116889]
[1745953450052,0.2404867,95347.0,95346.0,0.2106889]
[1745953450242,0.2404867,95347.0,95346.0,0.2116889]
[1745953451153,0.2404867,95347.0,95346.0,0.3316889]
[1745953451646,0.2404867,95347.0,95346.0,0.3306889]
[1745953451835,0.2404867,95347.0,95346.0,0.3316889]
[1745953453150,0.2404867,95347.0,95346.0,0.3306889]
[1745953455351,0.2404867,95347.0,95346.0,0.2106889]
[1745953456054,0.2404867,95347.0,95346.0,0.2096889]
[1745953456351,0.2404867,95347.0,95346.0,0.3296889]
[1745953457549,0.2404867,95347.0,95346.0,0.3316889]
[1745953458251,0.2404867,95347.0,95346.0,0.2116889]
[1745953459952,0.2404867,95347.0,95346.0,0.2106889]
[1745953460149,0.2404867,95347.0,95346.0,0.2096889]
[1745953460544,0.2414867,95347.0,95346.0,0.2096889]
[1745953461561,0.2404867,95347.0,95346.0,0.2096889]
[1745953461745,0.2414867,95347.0,95346.0,0.2096889]
[1745953462953,0.2404867,95347.0,95346.0,0.2096889]
[1745953463155,0.2414867,95347.0,95346.0,0.2096889]
[1745953463558,0.2404867,95347.0,95346.0,0.2096889]
[1745953463752,0.2745867,95347.0,95346.0,0.2096889]
[1745953464061,0.2735867,95347.0,95346.0,0.2096889]
[1745953464250,0.2745867,95347.0,95346.0,0.2096889]
[1745953464960,0.3794311,95347.0,95346.0,0.2096889]
[1745953465150,0.3794311,95347.0,95346.0,0.3296889]
[1745953465347,0.7402311,95347.0,95346.0,0.12]
[1745953465551,0.8461111,95347.0,95346.0,0.12]
[1745953466156,0.2096955,95343.0,95342.0,0.21306978]
[1745953466950,0.2716955,95343.0,95342.0,0.21306978]
[1745953467351,0.2726955,95343.0,95342.0,0.21306978]
[1745953467761,0.2736955,95343.0,95342.0,0.21306978]
[1745953467966,0.2746955,95343.0,95342.0,0.21306978]
[1745953468468,0.2746955,95343.0,95337.0,0.2097082]
[1745953468469,0.2097065,95338.0,95337.0,0.37009356]
[1745953469270,0.3032065,95338.0,95337.0,0.37009356]
[1745953470260,0.3042065,95338.0,95337.0,0.37009356]
[1745953470867,0.3042065,95338.0,95337.0,0.16038536]
[1745953471665,0.3042065,95338.0,95336.0,0.2097105]
[1745953471666,0.2097087,95337.0,95336.0,0.2097105]
[1745953472056,0.2707087,95337.0,95336.0,0.2097105]
[1745953472257,0.2097153,95334.0,95333.0,0.0317]
[1745953473166,0.2097153,95334.0,95333.0,0.1517]
[1745953474069,0.2097153,95334.0,95333.0,0.1527]
[1745953475670,0.2097153,95334.0,95333.0,0.1859]
[1745953475966,0.2097153,95334.0,95333.0,0.3956175]
[1745953476566,0.2097153,95334.0,95333.0,0.3946175]
[1745953476767,0.2097153,95334.0,95333.0,0.3956175]
[1745953478261,0.0524177,95355.0,95333.0,0.5467]
[1745953478454,0.2096933,95345.0,95344.0,0.2096922]
[1745953478654,0.2096955,95343.0,95342.0,0.0662]
[1745953478854,0.2096955,95343.0,95342.0,0.2758977]
[1745953479155,0.2096955,95343.0,95342.0,0.3958977]
[1745953480355,0.2106955,95343.0,95342.0,0.3958977]
[1745953480562,0.2116955,95343.0,95342.0,0.3958977]
[1745953480866,0.2106955,95343.0,95342.0,0.3958977]
[1745953481259,0.2096955,95343.0,95342.0,0.3958977]
[1745953481561,0.2096955,95343.0,95342.0,0.3968977]
[1745953482267,0.2399955,95343.0,95342.0,0.3968977]
[1745953483871,0.2399955,95343.0,95342.0,0.3958977]
[1745953484073,0.2399955,95343.0,95342.0,0.3968977]
[1745953486367,0.2399955,95343.0,95342.0,0.3958977]
[1745953488968,0.2399955,95343.0,95342.0,0.1531]
[1745953489174,0.2399955,95343.0,95342.0,0.2427977]
[1745953489580,0.2409955,95343.0,95342.0,0.2427977]
[1745953490269,0.2106955,95343.0,95342.0,0.2427977]
[1745953491282,0.2106955,95343.0,95342.0,0.6035977]
[1745953492072,0.2106955,95343.0,95342.0,0.7235977]
[1745953492780,0.2096955,95343.0,95342.0,0.7235977]
[1745953493179,0.2096955,95343.0,95342.0,0.7245977]
[1745953495565,0.2096955,95343.0,95342.0,0.7235977]
[1745953495769,0.2096955,95343.0,95342.0,0.7245977]
[1745953496177,0.2399955,95343.0,95342.0,0.7556977]
[1745953497473,0.2096955,95343.0,95342.0,0.91608306]
[1745953501581,0.2096955,95343.0,95342.0,0.7556977]
[1745953501784,0.2425955,95343.0,95342.0,0.7556977]
[1745953502280,0.2742955,95343.0,95342.0,0.7556977]
[1745953502770,0.2742955,95343.0,95342.0,0.7546977]
[1745953503680,0.2742955,95343.0,95342.0,0.7556977]
[1745953503984,0.2096955,95343.0,95342.0,0.7556977]
[1745953505080,0.2096805,95354.0,95353.0,0.2620829]
[1745953505285,0.2096805,95354.0,95353.0,0.6228829]
[1745953505583,0.2096691,95355.0,95354.0,0.2096691]
[1745953505885,0.2096691,95355.0,95354.0,0.2420691]
[1745953506073,0.2096691,95355.0,95354.0,0.4263691]
[1745953506274,0.2096691,95355.0,95354.0,0.45457794]
[1745953507286,0.2096691,95355.0,95354.0,0.45557794]
[1745953507585,0.0015,95360.0,95359.0,0.2096603]
[1745953507886,0.2106229,95376.0,95375.0,0.2096251]
[1745953508083,0.2106229,95376.0,95375.0,0.6904251]
[1745953508483,0.001,95376.0,95375.0,0.6904251]
[1745953508674,0.001,95376.0,95375.0,1.1135251]
[1745953509183,0.001,95376.0,95375.0,2.6135251]
[1745953509777,0.006,95376.0,95375.0,2.6135251]
[1745953510184,0.2096009,95386.0,95385.0,0.2096031]
[1745953510380,0.2096009,95386.0,95385.0,0.5704031]
[1745953510888,0.2096009,95386.0,95385.0,0.36849672]
[1745953511073,0.2096009,95386.0,95385.0,0.48849672]
[1745953511279,0.2136009,95386.0,95385.0,0.48849672]
[1745953511791,0.2176009,95386.0,95385.0,0.69809982]
[1745953511989,0.2176009,95386.0,95385.0,0.72630036]
[1745953513088,0.2176009,95386.0,95385.0,0.15589726]
[1745953513280,0.008,95386.0,95385.0,0.15589726]
[1745953513485,0.008,95386.0,95385.0,0.36550036]
[1745953514192,0.2176009,95386.0,95385.0,0.27710036]
[1745953516389,0.2176009,95386.0,95385.0,0.39710036]
[1745953518391,0.0523961,95394.0,95393.0,0.2095834]
[1745953518683,0.0523961,95394.0,95393.0,0.5703834]
[1745953518884,0.0824961,95394.0,95393.0,0.6016834]
[1745953519075,0.0824961,95394.0,95393.0,0.7216834]
[1745953519790,0.2920795,95394.0,95393.0,0.7216834]
[1745953520587,0.2930795,95394.0,95393.0,0.4808]
[1745953520785,0.2930795,95394.0,95393.0,0.6903856]
[1745953520981,0.2970795,95394.0,95393.0,0.6903856]
[1745953521588,0.2970795,95394.0,95393.0,0.12]
[1745953522283,0.2970795,95394.0,95389.0,0.0523981]
[1745953522284,0.2095878,95392.0,95391.0,0.2095881]
[1745953522683,0.2095921,95390.0,95389.0,0.2619908]
[1745953522886,0.2095987,95388.0,95387.0,0.2095967]
[1745953523483,0.2723987,95388.0,95387.0,0.2095967]
[1745953523684,0.3029987,95388.0,95387.0,0.2095967]
[1745953524489,0.3039987,95388.0,95387.0,0.2095967]
[1745953525188,0.3069987,95388.0,95387.0,0.2095967]
[1745953525989,0.2096009,95386.0,95385.0,0.03589726]
[1745953526190,0.2096053,95384.0,95383.0,0.3608]
[1745953526380,0.2096053,95384.0,95381.0,0.06396]
[1745953526381,0.2096339,95371.0,95370.0,0.2096351]
[1745953526586,0.2096339,95371.0,95370.0,0.2735951]
[1745953527285,0.2096339,95371.0,95370.0,0.3935951]
[1745953527690,0.2096339,95371.0,95370.0,0.42067191]
[1745953528083,0.2402339,95371.0,95370.0,0.42067191]
[1745953528283,0.2402339,95371.0,95370.0,0.45147191]
[1745953528587,0.2402339,95371.0,95370.0,0.45951588]
[1745953532494,0.2402339,95371.0,95370.0,0.39555588]
[1745953532686,0.2402339,95371.0,95370.0,0.45939588]
[1745953532991,0.2402339,95371.0,95370.0,0.21896078]
[1745953533297,0.2402339,95371.0,95370.0,0.03512078]
[1745953533486,0.2096449,95366.0,95365.0,0.570447]
[1745953534383,0.2740449,95366.0,95365.0,0.38853486]
[1745953534689,0.2740449,95366.0,95365.0,0.60689044]
[1745953535189,0.2740449,95366.0,95365.0,0.60789044]
[1745953535989,0.2740449,95366.0,95365.0,0.63979044]
[1745953536181,0.2740449,95366.0,95365.0,0.75979044]
[1745953536591,0.2740449,95366.0,95365.0,0.75879044]
[1745953536790,0.2740449,95366.0,95365.0,0.75979044]
[1745953539595,0.0318,95366.0,95365.0,0.75979044]
[1745953539795,0.2096255,95378.0,95377.0,0.3144151]
[1745953540300,0.2096255,95378.0,95377.0,0.2620118]
[1745953540887,0.2743255,95378.0,95377.0,0.2620118]
[1745953541093,0.2773255,95378.0,95377.0,0.2620118]
[1745953541500,0.2763255,95378.0,95377.0,0.2620118]
[1745953542001,0.2763255,95378.0,95377.0,0.2096086]
[1745953542601,0.002,95378.0,95377.0,0.2096086]
[1745953542902,0.002,95378.0,95377.0,0.2411086]
[1745953543094,0.002,95378.0,95377.0,0.3611086]
[1745953544599,0.2116185,95378.0,95377.0,0.3611086]
[1745953544901,0.002,95378.0,95377.0,0.3611086]
[1745953545100,0.2116185,95378.0,95377.0,0.3611086]
[1745953545904,0.002,95378.0,95377.0,0.3611086]
[1745953547100,0.0321,95378.0,95377.0,0.3611086]
[1745953547696,0.002,95378.0,95377.0,0.3611086]
[1745953548294,0.0337,95378.0,95377.0,0.3611086]
[1745953548993,0.0337,95378.0,95377.0,1.8611086]
[1745953553094,0.2433185,95378.0,95377.0,1.8611086]
[1745953554304,0.0337,95378.0,95377.0,1.8611086]
[1745953554702,0.2433185,95378.0,95377.0,1.8611086]
[1745953555807,0.2433185,95378.0,95377.0,0.3611086]
[1745953556395,0.2433185,95378.0,95377.0,1.8611086]
[1745953556801,0.0337,95378.0,95377.0,1.8611086]
[1745953557001,0.2433185,95378.0,95377.0,1.8611086]
[1745953557305,0.2433185,95378.0,95377.0,2.02100206]
[1745953557503,0.2433185,95378.0,95377.0,0.52100206]
[1745953558413,0.0337,95378.0,95377.0,0.52100206]
[1745953558703,0.2433185,95378.0,95377.0,0.52100206]
[1745953559297,0.0337,95378.0,95377.0,0.52100206]
[1745953559902,0.0337,95378.0,95377.0,0.3611086]
[1745953560494,0.2433185,95378.0,95377.0,0.3611086]
[1745953560716,0.0337,95378.0,95377.0,0.3611086]
[1745953561295,0.2433185,95378.0,95377.0,0.3611086]
[1745953563099,0.2433185,95378.0,95377.0,0.12]
[1745953563301,0.2096295,95373.0,95372.0,0.2096317]
[1745953563797,0.2096295,95373.0,95372.0,0.2405317]
[1745953564005,0.2096295,95373.0,95372.0,0.2710317]
[1745953564507,0.2419295,95373.0,95372.0,0.6318317]
[1745953566705,0.0323,95373.0,95372.0,0.6318317]
[1745953567015,0.2619976,95388.0,95387.0,0.2095965]
[1745953567217,0.2919976,95388.0,95387.0,0.2414965]
[1745953567701,0.2919976,95388.0,95387.0,0.0319]
[1745953567903,0.2096009,95386.0,95385.0,0.2096022]
[1745953568803,0.2723009,95386.0,95385.0,0.2096022]
[1745953569502,0.0327,95386.0,95385.0,0.2096022]
[1745953569707,0.0367,95386.0,95385.0,0.2409022]
[1745953569901,0.2463009,95386.0,95385.0,0.2409022]
[1745953570106,0.2463009,95386.0,95385.0,0.3609022]
[1745953572214,0.2463009,95386.0,95385.0,0.3296022]
[1745953577717,0.2463009,95386.0,95385.0,0.3609022]
[1745953579821,0.2463009,95386.0,95385.0,0.3296022]
[1745953582208,0.2463009,95386.0,95385.0,0.2096022]
[1745953585024,0.2096053,95384.0,95383.0,0.73045476]
[1745953585317,0.2096053,95384.0,95383.0,0.2096075]
[1745953585711,0.2731053,95384.0,95383.0,0.2096075]
[1745953586813,0.2741053,95384.0,95383.0,0.2096075]
[1745953587318,0.2761053,95384.0,95383.0,0.2096075]
[1745953589923,0.2096185,95378.0,95377.0,0.3780224]
[1745953590111,0.2096185,95378.0,95377.0,0.4980224]
[1745953590710,0.2724185,95378.0,95377.0,0.1836]
[1745953590917,0.2734185,95378.0,95377.0,0.12]
[1745953591229,0.2096295,95373.0,95371.0,0.42270308]
[1745953591530,0.2096295,95373.0,95372.0,0.5704317]
[1745953592122,0.2738295,95373.0,95372.0,0.5704317]
[1745953592519,0.2738295,95373.0,95372.0,0.6014317]
[1745953592718,0.2738295,95373.0,95372.0,0.6332317]
[1745953593225,0.2738295,95373.0,95372.0,0.7532317]
[1745953593925,0.2738295,95373.0,95372.0,0.3924317]
[1745953596219,0.2738295,95373.0,95372.0,0.2724317]
[1745953598032,0.2738295,95373.0,95372.0,0.43229492]
[1745953598224,0.2738295,95373.0,95372.0,0.55229492]
[1745953599827,0.2738295,95373.0,95372.0,0.52049492]
[1745953600224,0.2738295,95373.0,95372.0,0.40049492]
[1745953602034,0.2738295,95373.0,95372.0,0.2406317]
[1745953605737,0.2738295,95373.0,95372.0,0.031]
[1745953606738,0.2738295,95373.0,95372.0,0.2406317]
[1745953609240,0.2738295,95373.0,95372.0,0.40042648]
[1745953610729,0.2413295,95373.0,95372.0,0.40042648]
[1745953611139,0.2413295,95373.0,95372.0,0.52042648]
[1745953613440,0.2413295,95373.0,95372.0,0.3606317]
[1745953614338,0.2413295,95373.0,95372.0,0.2406317]
[1745953616137,0.2413295,95373.0,95372.0,0.3606317]
[1745953618337,0.0523941,95398.0,95384.0,0.0524008]
[1745953618540,0.2096009,95386.0,95385.0,0.3076031]
[1745953619035,0.2096009,95386.0,95385.0,0.4276031]
[1745953619626,0.2423009,95386.0,95385.0,0.4276031]
[1745953621336,0.2739009,95386.0,95385.0,0.4276031]
[1745953621535,0.2779009,95386.0,95385.0,0.4276031]
[1745953627242,0.2463009,95386.0,95385.0,0.4276031]
[1745953629847,0.2463009,95386.0,95385.0,0.218]
[1745953630139,0.2780009,95386.0,95385.0,0.3296031]
[1745953630744,0.2780009,95386.0,95385.0,0.12]
[1745953631837,0.2096053,95384.0,95383.0,0.2417068]
[1745953632450,0.2728053,95384.0,95383.0,0.2417068]
[1745953633150,0.2758053,95384.0,95383.0,0.2732068]
[1745953635747,0.003,95384.0,95383.0,0.2732068]
[1745953636141,0.003,95384.0,95383.0,0.3932068]
[1745953636542,0.2453053,95384.0,95383.0,0.3932068]
[1745953637559,0.0357,95384.0,95383.0,0.3932068]
[1745953637749,0.2453053,95384.0,95383.0,0.3932068]
[1745953638351,0.0357,95384.0,95383.0,0.3932068]
[1745953638654,0.003,95384.0,95383.0,0.3932068]
[1745953640842,0.0523937,95398.0,95394.0,0.2095834]
[1745953641047,0.0523942,95397.0,95394.0,0.2095834]
[1745953641245,0.2110812,95395.0,95394.0,0.2095834]
[1745953641455,0.0015,95395.0,95394.0,0.2095834]
[1745953641657,0.0015,95395.0,95394.0,0.2724834]
[1745953642046,0.2160812,95395.0,95394.0,0.2724834]
[1745953642250,0.2170812,95395.0,95394.0,0.2724834]